fUSD/lending_fUSD_20250216
["ID","MTS","AMOUNT","RATE_DAILY","PERIOD"]
[353250061,1739715096663,-500.0,0.0001178,2]
[353250062,1739715096673,-461.60192232,0.0001178,2]
[353250063,1739715096684,-500.0,0.0001178,2]
[353250064,1739715096695,-1689.28,0.0001178,2]
[353250065,1739715096706,-500.0,0.0001178,2]
[353250066,1739715096715,-565.18,0.0001178,2]
[353250067,1739715096725,-728.92,0.0001178,2]
[353250068,1739715096736,-815.99,0.0001178,2]
[353250069,1739715096746,-500.0,0.0001178,2]
[353250070,1739715096756,-500.0,0.0001178,2]
[353250071,1739715096765,-500.0,0.0001178,2]
[353250072,1739715096775,-599.0,0.0001178,2]
[353250073,1739715096785,-500.0,0.0001178,2]
[353250074,1739715096796,-500.0,0.0001178,2]
[353250075,1739715096805,-500.0,0.0001178,2]
[353250076,1739715096815,-500.0,0.0001178,2]
[353250077,1739715096825,-801.5,0.0001178,2]
[353250078,1739715096835,-500.0,0.0001178,2]
[353250079,1739715096844,-500.0,0.0001178,2]
[353250080,1739715096854,-1255.83,0.0001178,2]
[353250081,1739715096864,-500.0,0.0001178,2]
[353250082,1739715096874,-500.0,0.0001178,2]
[353250083,1739715096884,-500.0,0.0001178,2]
[353250084,1739715096894,-683.35,0.0001178,2]
[353250085,1739715096904,-536.76,0.0001178,2]
[353250086,1739715096913,-776.04,0.0001178,2]
[353250087,1739715096923,-674.54,0.0001178,2]
[353250088,1739715096933,-1260.16,0.0001178,2]
[353250089,1739715096942,-500.0,0.0001178,2]
[353250090,1739715096952,-500.0,0.0001178,2]
[353250091,1739715096962,-500.0,0.0001178,2]
[353250092,1739715096971,-1494.67,0.0001178,2]
[353250093,1739715096980,-565.35,0.0001178,2]
[353250094,1739715096990,-676.96,0.0001178,2]
[353250095,1739715097001,-157.12556,0.0001178,2]
[353250096,1739715097011,-1049.51,0.0001178,2]
[353250097,1739715097020,-518.85,0.0001178,2]
[353250098,1739715097030,-500.0,0.0001178,2]
[353250099,1739715097039,-536.21,0.0001178,2]
[353250100,1739715097048,-1257.34,0.0001178,2]
[353250101,1739715097058,-500.0,0.0001178,2]
[353250102,1739715097067,-749.39,0.0001178,2]
[353250103,1739715097076,-500.0,0.0001178,2]
[353250104,1739715097085,-500.0,0.0001178,2]
[353250105,1739715097095,-500.0,0.0001178,2]
[353250106,1739715097105,-593.79,0.0001178,2]
[353250107,1739715097114,-500.0,0.0001178,2]
[353250108,1739715097124,-563.21,0.0001178,2]
[353250109,1739715097135,-809.52,0.0001178,2]
[353250110,1739715097144,-262.21336057,0.0001178,2]
[353250111,1739715097153,-500.0,0.0001178,2]
[353250112,1739715097163,-500.0,0.0001178,2]
[353250113,1739715097173,-733.24,0.0001178,2]
[353250114,1739715097183,-543.72,0.0001178,2]
[353250115,1739715097192,-563.33,0.0001178,2]
[353250116,1739715097202,-500.0,0.0001178,2]
[353250117,1739715097211,-500.0,0.0001178,2]
[353250118,1739715097221,-759.09,0.0001178,2]
[353250119,1739715097230,-500.0,0.0001178,2]
[353250120,1739715097240,-806.21,0.0001178,2]
[353250121,1739715097251,-500.0,0.0001178,2]
[353250122,1739715097261,-559.91,0.0001178,2]
[353250123,1739715097270,-784.93,0.0001178,2]
[353250124,1739715097279,-500.0,0.0001178,2]
[353250125,1739715097289,-740.59,0.0001178,2]
[353250126,1739715097298,-587.36,0.0001178,2]
[353250127,1739715097307,-561.67,0.0001178,2]
[353250128,1739715097317,-500.0,0.0001178,2]
[353250129,1739715097326,-500.0,0.0001178,2]
[353250130,1739715097335,-358.93927388,0.0001178,2]
[353250131,1739715097344,-681.58,0.0001178,2]
[353250132,1739715097354,-500.0,0.0001178,2]
[353250133,1739715097364,-824.55,0.0001178,2]
[353250134,1739715097373,-758.66,0.0001178,2]
[353250135,1739715097382,-540.21,0.0001178,2]
[353250136,1739715097392,-951.56,0.0001178,2]
[353250137,1739715097401,-830.8,0.0001178,2]
[353250138,1739715097411,-737.81,0.0001178,2]
[353250139,1739715097426,-500.0,0.0001178,2]
[353250140,1739715097436,-1159.06,0.0001178,2]
[353250141,1739715097445,-500.0,0.0001178,2]
[353250142,1739715097455,-3660.94,0.0001178,2]
[353250143,1739715097466,-500.0,0.0001178,2]
[353250144,1739715097475,-500.0,0.0001178,2]
[353250145,1739715097485,-958.21,0.0001178,2]
[353250146,1739715097495,-1060.48,0.0001178,2]
[353250147,1739715097505,-579.22,0.0001178,2]
[353250148,1739715097515,-1730.93,0.0001178,2]
[353250149,1739715097524,-722.92,0.0001178,2]
[353250150,1739715097534,-786.46,0.0001178,2]
[353250151,1739715097543,-500.0,0.0001178,2]
[353250152,1739715097552,-804.45,0.0001178,2]
[353250153,1739715097562,-1270.84,0.0001178,2]
[353250154,1739715097572,-1391.28,0.0001178,2]
[353250155,1739715097582,-878.61,0.0001178,2]
[353250156,1739715097592,-500.0,0.0001178,2]
[353250157,1739715097601,-500.0,0.0001178,2]
[353250158,1739715097611,-807.08,0.0001178,2]
[353250159,1739715097621,-652.19,0.0001178,2]
[353250160,1739715097631,-1331.21,0.0001178,2]
[353250161,1739715097641,-1342.55,0.0001178,2]
[353250162,1739715097651,-1435.31,0.0001178,2]
[353250163,1739715097660,-2872.91,0.0001178,2]
[353250164,1739715097670,-1185.6,0.0001178,2]
[353250165,1739715097679,-500.0,0.0001178,2]
[353250166,1739715097689,-500.0,0.0001178,2]
[353250167,1739715097699,-880.05,0.0001178,2]
[353250168,1739715097709,-2343.11,0.0001178,2]
[353250169,1739715097718,-1065.5,0.0001178,2]
[353250170,1739715097727,-1602.94,0.0001178,2]
[353250171,1739715097736,-1665.81,0.0001178,2]
[353250172,1739715097746,-767.8,0.0001178,2]
[353250173,1739715097755,-557.07,0.0001178,2]
[353250174,1739715097765,-896.78,0.0001178,2]
[353250175,1739715097775,-1549.56,0.0001178,2]
[353250176,1739715097784,-2011.15,0.0001178,2]
[353250177,1739715097794,-500.0,0.0001178,2]
[353250178,1739715097804,-921.0,0.0001178,2]
[353250179,1739715097814,-780.05,0.0001178,2]
[353250180,1739715097824,-2015.93,0.0001178,2]
[353250181,1739715097834,-5933.4,0.0001178,2]
[353250182,1739715097843,-1028.79,0.0001178,2]
[353250183,1739715097853,-500.0,0.0001178,2]
[353250184,1739715097863,-806.38,0.0001178,2]
[353250185,1739715097873,-1735.22,0.0001178,2]
[353250186,1739715097883,-618.15,0.0001178,2]
[353250187,1739715097893,-2177.12,0.0001178,2]
[353250188,1739715097903,-869.88,0.0001178,2]
[353250189,1739715097913,-1738.63,0.0001178,2]
[353250190,1739715097923,-500.0,0.0001178,2]
[353250191,1739715097933,-1405.53,0.0001178,2]
[353250192,1739715097942,-1655.05,0.0001178,2]
[353250193,1739715097952,-500.0,0.0001178,2]
[353250194,1739715097962,-1858.43,0.0001178,2]
[353250195,1739715097972,-500.0,0.0001178,2]
[353250196,1739715097984,-1388.75,0.0001178,2]
[353250197,1739715097993,-1154.03,0.0001178,2]
[353250198,1739715098003,-845.0,0.0001178,2]
[353250199,1739715098013,-2137.22,0.0001178,2]
[353250200,1739715098022,-506.37,0.0001178,2]
[353250201,1739715098033,-500.0,0.0001178,2]
[353250202,1739715098044,-2717.32,0.0001178,2]
[353250203,1739715098054,-1132.72,0.0001178,2]
[353250204,1739715098063,-862.14,0.0001178,2]
[353250205,1739715098073,-2266.58,0.0001178,2]
[353250206,1739715098083,-1722.09,0.0001178,2]
[353250207,1739715098092,-511.75507817,0.0001178,2]
[353250208,1739715098102,-760.22000555,0.0001178,2]
[353250209,1739715098712,-785.92999445,0.0001178,2]
[353250210,1739715098722,-691.19,0.0001178,2]
[353250211,1739715098732,-716.06,0.0001178,2]
[353250212,1739715098742,-691.61,0.0001178,2]
[353250213,1739715098753,-849.87738864,0.0001178,2]
[353250214,1739715099017,-483.57423837,0.00010958,2]
[353250215,1739715099031,-16.42576163,0.00010958,2]
[353250216,1739715099040,-362.06124838,0.00010958,2]
[353250217,1739715099356,-1191.92368758,0.0001,2]
[353250218,1739715099366,-219.57734616,0.00010958,2]
[353250219,1739715099376,-500.0,0.00010958,2]
[353250220,1739715099385,-500.0,0.00010958,2]
[353250221,1739715099394,-300.0,0.00010958,2]
[353250222,1739715099403,-500.0,0.00010958,2]
[353250223,1739715099415,-2393.06,0.00011041,2]
[353250224,1739715099426,-500.0,0.00011041,2]
[353250225,1739715099435,-500.0,0.00011041,2]
[353250226,1739715099446,-2393.06,0.00011123,2]
[353250227,1739715099455,-500.0,0.00011123,2]
[353250228,1739715099466,-44.37896626,0.00011123,2]
[353250229,1739715099492,-113.56103374,0.00011123,2]
[353250230,1739715099502,-610.47570291,0.00011205,2]
[353250231,1739715099970,-282.275,0.00010958,2]
[353250232,1739715099988,-315.725,0.00010958,2]
[353250233,1739715099998,-500.0,0.00010958,2]
[353250234,1739715100007,-158.46813527,0.00010958,2]
[353250235,1739715100019,-341.53186473,0.00010958,2]
[353250236,1739715100028,-500.0,0.00010958,2]
[353250237,1739715100037,-231.98442171,0.00011041,2]
[353250238,1739715100046,-500.0,0.00011041,2]
[353250239,1739715100056,-500.0,0.00011041,2]
[353250240,1739715100066,-1188.00429709,0.00011205,2]
[353250241,1739715100075,-2393.06,0.00011205,2]
[353250242,1739715100085,-237.25,0.00011205,2]
[353250243,1739715100095,-1798.48,0.00011287,2]
[353250244,1739715100104,-309.78941656,0.00011287,2]
[353250245,1739715100116,-2083.27058344,0.00011287,2]
[353250246,1739715100126,-1798.48,0.00011369,2]
[353250247,1739715100136,-1666.89500414,0.00011369,2]
[353250248,1739715100294,-726.16499586,0.00011369,2]
[353250249,1739715100304,-1798.48,0.00011452,2]
[353250250,1739715100313,-2393.06,0.00011452,2]
[353250251,1739715100323,-1798.48,0.00011534,2]
[353250252,1739715100332,-2393.06,0.00011534,2]
[353250253,1739715100342,-1798.48,0.00011616,2]
[353250254,1739715100351,-2307.05893574,0.00011616,2]
[353250255,1739715100362,-86.00106426,0.00011616,2]
[353250256,1739715100372,-1798.48,0.00011698,2]
[353250257,1739715100381,-514.51893574,0.00011698,2]
[353250258,1739715100393,-1878.54106426,0.00011698,2]
[353250259,1739715100402,-1676.1566356,0.00011763,2]
[353250260,1739715100411,-2831.69261136,0.0001178,2]
[353250261,1739715100425,-1677.93585618,0.0001178,2]
[353250262,1739715100437,-72.10414382,0.0001178,2]
[353250263,1739715100447,-315.56079138,0.0001178,2]
[353250264,1739715100544,-184.43920862,0.0001178,2]
[353250265,1739715100554,-254.58906154,0.0001178,2]
[353250266,1739715100566,-1951.47093846,0.0001178,2]
[353250267,1739715100575,-1226.98,0.0001178,2]
[353250268,1739715100585,-1012.09,0.0001178,2]
[353250269,1739715100594,-556.09,0.0001178,2]
[353250270,1739715100604,-4179.36,0.0001178,2]
[353250271,1739715100614,-1772.08,0.0001178,2]
[353250272,1739715100623,-1227.53,0.0001178,2]
[353250273,1739715100632,-708.46,0.0001178,2]
[353250274,1739715100641,-1664.11,0.0001178,2]
[353250275,1739715100651,-1847.98,0.0001178,2]
[353250276,1739715100660,-985.39,0.0001178,2]
[353250277,1739715100670,-2328.12,0.0001178,2]
[353250278,1739715100679,-1121.04,0.0001178,2]
[353250279,1739715100689,-2199.9,0.0001178,2]
[353250280,1739715100698,-1873.13,0.0001178,2]
[353250281,1739715100708,-1589.01,0.0001178,2]
[353250282,1739715100717,-634.08,0.0001178,2]
[353250283,1739715100727,-500.0,0.0001178,2]
[353250284,1739715100736,-2233.29,0.0001178,2]
[353250285,1739715100745,-823.12,0.0001178,2]
[353250286,1739715100756,-851.28,0.0001178,2]
[353250287,1739715100765,-1640.79,0.0001178,2]
[353250288,1739715100774,-887.61774022,0.0001178,2]
[353250289,1739715140128,1153.48,8.219e-05,2]
[353250295,1739715955532,760.09355659,6.94e-05,2]
[353250297,1739716054285,500.0,0.0002,120]
[353250298,1739716054568,415.8,0.0002,120]
[353250310,1739716189009,1095.8,8.219e-05,2]
[353250313,1739716231389,-382.0,9e-05,2]
[353250315,1739716231401,-71.09109508,9e-05,2]
[353250318,1739716231411,-200.0,9.194e-05,2]
[353250320,1739716231421,-847.85,9.388e-05,2]
[353250321,1739716231430,-170.98746889,9.431e-05,2]
[353250322,1739716231503,-29.01253111,9.431e-05,2]
[353250323,1739716231512,-245.55,9.504e-05,2]
[353250324,1739716231521,-500.0,9.562e-05,2]
[353250325,1739716231532,-250.0,9.702e-05,2]
[353250326,1739716231541,-166.31698553,9.702e-05,2]
[353250327,1739716231552,-665.71276693,9.702e-05,2]
[353250328,1739716231562,-204.69,9.714e-05,2]
[353250329,1739716231571,-172.67,9.741e-05,2]
[353250330,1739716231580,-300.0,9.827e-05,2]
[353250331,1739716231589,-33.72723311,9.828e-05,2]
[353250332,1739716231632,-1446.33781593,9.828e-05,2]
[353250333,1739716231644,-2405.1,9.828e-05,2]
[353250334,1739716231654,-322.51260265,9.828e-05,2]
[353250335,1739716231743,-389.38675726,9.828e-05,2]
[353250336,1739716231781,-445.17975064,9.828e-05,2]
[353250337,1739716231792,-4621.40089706,9.828e-05,2]
[353250338,1739716231802,-200.0,9.9e-05,2]
[353250339,1739716231811,-200.0,9.928e-05,2]
[353250340,1739716231821,-500.0,9.979e-05,2]
[353250341,1739716231831,-249.38796785,9.979e-05,2]
[353250342,1739716231840,-150.0,9.979e-05,2]
[353250343,1739716231850,-9710.08968748,9.98e-05,2]
[353250344,1739716231862,-518.94,9.98e-05,2]
[353250345,1739716231873,-2425.3624,9.98e-05,2]
[353250346,1739716231884,-1000.0,9.98e-05,2]
[353250348,1739716231896,-1720.01623795,9.98e-05,2]
[353250350,1739716231907,-271.5,9.98e-05,2]
[353250352,1739716231920,-27283.06130845,9.98e-05,2]
[353250639,1739716237320,-957.11807048,9.98e-05,2]
[353250640,1739716237332,-468.54598073,9.98e-05,2]
[353250668,1739716237865,-1424.195,9.98e-05,2]
[353250670,1739716237878,-949.82050932,9.98e-05,2]
[353250673,1739716237891,-47420.72541401,9.98e-05,2]
[353250675,1739716237905,-2198.34270615,9.98e-05,2]
[353250678,1739716237920,-419.26263141,9.98e-05,2]
[353250680,1739716237933,-952.97096038,9.98e-05,2]
[353250683,1739716237946,-282.55999991,9.98e-05,2]
[353250688,1739716237986,-3014.72194299,9.98e-05,2]
[353250690,1739716237999,-296.2850012,9.98e-05,2]
[353250693,1739716238012,-193731.36381489,9.98e-05,2]
[353250695,1739716238025,-2478.25710018,9.98e-05,2]
[353250838,1739716239448,-3118.19276015,9.98e-05,2]
[353250840,1739716239463,-2378.73847297,9.98e-05,2]
[353250846,1739716239506,-3685.0969564,9.98e-05,2]
[353250848,1739716239520,-1157.09120837,9.98e-05,2]
[353250850,1739716239533,-306.62001002,9.98e-05,2]
[353250853,1739716239546,-751164.40290415,9.98e-05,2]
[353250858,1739716239583,-1051.86026952,9.98e-05,2]
[353250860,1739716239596,-2643.30290429,9.98e-05,2]
[353250871,1739716239706,-10377.59079056,9.98e-05,2]
[353250879,1739716239841,-394150.11097099,9.98e-05,2]
[353250880,1739716239855,-10555.60297653,9.98e-05,2]
[353250881,1739716239868,-6063.97141446,9.98e-05,2]
[353250882,1739716239883,-328.86805204,9.98e-05,2]
[353250883,1739716239896,-4559.689305,9.98e-05,2]
[353250884,1739716239909,-348.82372796,9.98e-05,2]
[353250885,1739716239922,-4527.3505269,9.98e-05,2]
[353250886,1739716239944,-549.73316218,9.98e-05,2]
[353250953,1739716242565,-1897.35152475,9.98e-05,2]
[353250955,1739716242576,-4731.0,9.98e-05,2]
[353250967,1739716242645,-50000.0,9.98e-05,2]
[353250970,1739716242657,-1372.69411189,9.98e-05,2]
[353250972,1739716242668,-6332.2849218,9.98e-05,2]
[353250974,1739716242679,-15046.07492615,9.98e-05,2]
[353250980,1739716242722,-572.17159999,9.98e-05,2]
[353251237,1739716245462,-12137.17334535,9.98e-05,2]
[353251238,1739716245473,-791.59009266,9.98e-05,2]
[353251239,1739716245491,-1837.79646986,9.98e-05,2]
[353251240,1739716245599,-954.49999975,9.98e-05,2]
[353251241,1739716245610,-601.12580234,9.98e-05,2]
[353251242,1739716245621,-1903.48588673,9.98e-05,2]
[353251243,1739716245639,-3179.53231744,9.98e-05,2]
[353251244,1739716245657,-944.61,9.98e-05,2]
[353251245,1739716245711,-84262.14361795,9.98e-05,2]
[353251246,1739716245722,-1000.0,9.98e-05,2]
[353251247,1739716245740,-5072.11384009,9.98e-05,2]
[353251248,1739716245751,-1447.11946177,9.98e-05,2]
[353251272,1739717282697,1083.14452735,8.219e-05,2]
[353251273,1739717282720,3.82547265,8.219e-05,2]
[353251283,1739717431599,-306.05575,8.973e-05,2]
[353251284,1739717431858,-4580.71955,8.973e-05,2]
[353251285,1739717431868,-200.0,8.986e-05,2]
[353251286,1739717431877,-150.0,9e-05,2]
[353251287,1739717431887,-150.0,9e-05,2]
[353251288,1739717431896,-150.0,9e-05,2]
[353251289,1739717431907,-150.0,9e-05,2]
[353251290,1739717431916,-200.0,9.291e-05,2]
[353251291,1739717431925,-158.045666,9.448e-05,2]
[353251292,1739717431937,-383.96,9.496e-05,2]
[353251293,1739717431947,-1000.0,9.574e-05,2]
[353251294,1739717431956,-500.0,9.644e-05,2]
[353251295,1739717431966,-300.0,9.778e-05,2]
[353251296,1739717431976,-1326.692,9.78e-05,2]
[353251297,1739717431985,-200.0,9.87e-05,2]
[353251298,1739717431995,-204.46,9.88e-05,2]
[353251299,1739717432004,-500.0,9.918e-05,2]
[353251300,1739717432013,-371.73602217,9.921e-05,2]
[353251317,1739717432361,-447.01575584,9.921e-05,2]
[353251319,1739717432371,-150.0,9.945e-05,2]
[353251321,1739717432380,-818.75177801,9.953e-05,2]
[353251323,1739717432390,-818.75177801,9.97e-05,2]
[353251325,1739717432400,-150.0,9.979e-05,2]
[353251327,1739717432409,-9936.13732425,9.98e-05,2]
[353251329,1739717432420,-1565.50250275,9.98e-05,2]
[353251334,1739717432459,-4636.81603701,9.98e-05,2]
[353251336,1739717432471,-2052.3758564,9.98e-05,2]
[353251340,1739717432504,-286.69293962,9.98e-05,2]
[353251343,1739717432519,-1319.59999998,9.98e-05,2]
[353251346,1739717432536,-1103.55713475,9.98e-05,2]
[353251348,1739717432548,-1000.398,9.98e-05,2]
[353251350,1739717432559,-341.88127219,9.98e-05,2]
[353251432,1739717437582,-10092.7335,9.98e-05,2]
[353251433,1739717437594,-4179.55394999,9.98e-05,2]
[353251434,1739717437605,-9774.94543347,9.98e-05,2]
[353251435,1739717437740,-63420.30126563,9.98e-05,2]
[353251436,1739717437752,-96952.47519978,9.98e-05,2]
[353251617,1739717439660,-668.622,9.98e-05,2]
[353251618,1739717439705,-1298.75011347,9.98e-05,2]
[353251619,1739717439717,-2969.48245861,9.98e-05,2]
[353251620,1739717439730,-633071.61642225,9.98e-05,2]
[353251621,1739717439739,-818.75177801,9.985e-05,2]
[353251622,1739717439748,-200.0,9.992e-05,2]
[353251623,1739717439757,-500.0,9.999e-05,2]
[353251624,1739717439767,-558.71887854,9.999e-05,2]
[353251625,1739717439777,-2356910.23529745,0.0001,2]
[353251626,1739717439799,-277.32348794,0.0001,2]
[353251627,1739717439810,-1585.51161415,0.0001,2]
[353251628,1739717439829,-987.28911366,0.0001,2]
[353251629,1739717439845,-774.42425797,0.0001,2]
[353251630,1739717439863,-472.86339972,0.0001,2]
[353251631,1739717439874,-345.16037055,0.0001,2]
[353251632,1739717439885,-266.91902214,0.0001,2]
[353251633,1739717439896,-1323.0,0.0001,2]
[353251634,1739717439916,-2026.17165695,0.0001,2]
[353251635,1739717439990,-3300.37141338,0.0001,2]
[353251636,1739717440002,-31572.7057168,0.0001,2]
[353251637,1739717440031,-799627.70623901,0.0001,2]
[353251638,1739717440042,-1526.4,0.0001,2]
[353251639,1739717440056,-880.88012,0.0001,2]
[353251640,1739717440083,-2240.91721747,0.0001,2]
[353251641,1739717440094,-5200.18082429,0.0001,2]
[353251642,1739717440108,-1695.03854347,0.0001,2]
[353251927,1739717442750,-1132.58449139,0.0001,2]
[353251929,1739717442762,-1469.6840553,0.0001,2]
[353251931,1739717442773,-6855.90067227,0.0001,2]
[353251933,1739717442784,-1359.61261136,0.0001,2]
[353251936,1739717442795,-16662.53043851,0.0001,2]
[353251938,1739717442805,-4686.32964663,0.0001,2]
[353251944,1739717442855,-981.537324,0.0001,2]
[353251946,1739717442866,-798.87778546,0.0001,2]
[353251948,1739717442878,-21097.77249338,0.0001,2]
[353251951,1739717442889,-10377.31968114,0.0001,2]
[353251953,1739717442900,-8746.08535037,0.0001,2]
[353251955,1739717442911,-850.15917123,0.0001,2]
[353251968,1739717443033,-4163.72940921,0.0001,2]
[353251970,1739717443044,-1570.13585198,0.0001,2]
[353251973,1739717443055,-782.84742092,0.0001,2]
[353252269,1739717445644,-820865.15199341,0.0001,2]
[353252271,1739717445656,-47549.34642279,0.0001,2]
[353252273,1739717445667,-4939.65467606,0.0001,2]
[353252275,1739717445678,-7875.39811696,0.0001,2]
[353252280,1739717445788,-159866.78520413,0.0001,2]
[353252284,1739717445825,-1125.1009528,0.0001,2]
[353252286,1739717445835,-659.07571056,0.0001,2]
[353252289,1739717445846,-519.57385982,0.0001,2]
[353252809,1739718197742,567.49,8.655e-05,2]
[353252810,1739718306020,498.93,8.638e-05,2]
[353252811,1739718341188,1078.59,8.219e-05,2]
[353252812,1739718418938,1906.05,0.00016712,120]
[353252813,1739718419178,1906.05,0.00016712,120]
[353252814,1739718419432,1906.05,0.00016712,120]
[353252815,1739718419688,1906.05,0.00016712,120]
[353252816,1739718420234,1906.05,0.00016712,120]
[353252817,1739718420317,1906.05,0.00016712,120]
[353252818,1739718420467,1906.05,0.00016712,120]
[353252819,1739718420774,1906.05,0.00016712,120]
[353252820,1739718421036,1906.05,0.00016712,120]
[353252821,1739718421290,1906.05,0.00016712,120]
[353252822,1739718421542,1906.05,0.00016712,120]
[353252823,1739718422190,1906.05,0.00016712,120]
[353252824,1739718422430,1906.05,0.00016712,120]
[353252825,1739718422690,1906.05,0.00016712,120]
[353252826,1739718423292,1906.05,0.00016712,120]
[353252827,1739718423549,1906.05,0.00016712,120]
[353252828,1739718423815,1906.05,0.00016712,120]
[353252829,1739718424108,1906.05,0.00016712,120]
[353252830,1739718424372,1906.05,0.00016712,120]
[353252831,1739718424659,1906.05,0.00016712,120]
[353252832,1739718425245,1906.05,0.00016712,120]
[353252833,1739718425514,1906.05,0.00016712,120]
[353252834,1739718425867,1906.05,0.00016712,120]
[353252835,1739718426290,1906.08315393,0.00016712,120]
[353252836,1739718448459,2000.0,8.62e-05,2]
[353252842,1739718584541,250.0,8.623e-05,2]
[353252851,1739718631786,-354.92370002,9.245e-05,2]
[353252852,1739718631937,-712.02367317,9.245e-05,2]
[353252853,1739718631948,-2236.92088886,9.245e-05,2]
[353252854,1739718632032,-6348.13173795,9.245e-05,2]
[353252855,1739718632042,-172.67,9.245e-05,2]
[353252856,1739718632052,-200.0,9.316e-05,2]
[353252857,1739718632061,-200.0,9.433e-05,2]
[353252858,1739718632071,-424.31,9.528e-05,2]
[353252859,1739718632081,-424.31,9.531e-05,2]
[353252860,1739718632091,-424.31,9.533e-05,2]
[353252861,1739718632100,-424.31,9.536e-05,2]
[353252862,1739718632110,-424.31,9.538e-05,2]
[353252863,1739718632119,-424.31,9.541e-05,2]
[353252864,1739718632129,-424.31,9.543e-05,2]
[353252865,1739718632139,-424.31,9.546e-05,2]
[353252866,1739718632149,-424.31,9.548e-05,2]
[353252867,1739718632158,-424.31,9.551e-05,2]
[353252868,1739718632167,-424.31,9.553e-05,2]
[353252869,1739718632177,-424.31,9.556e-05,2]
[353252870,1739718632187,-424.31,9.558e-05,2]
[353252871,1739718632196,-175.33578368,9.561e-05,2]
[353252872,1739718632208,-248.97421632,9.561e-05,2]
[353252873,1739718632218,-500.0,9.562e-05,2]
[353252874,1739718632228,-424.31,9.563e-05,2]
[353252875,1739718632237,-12816.78175927,9.566e-05,2]
[353252876,1739718632249,-650.44873887,9.566e-05,2]
[353252877,1739718632260,-274.7353825,9.566e-05,2]
[353252878,1739718632271,-374.9086065,9.566e-05,2]
[353252879,1739718632282,-458.02100012,9.566e-05,2]
[353252880,1739718632295,-691.49400045,9.566e-05,2]
[353252881,1739718632306,-384.4865941,9.566e-05,2]
[353252882,1739718632318,-293.998,9.566e-05,2]
[353252883,1739718632331,-308.0963464,9.566e-05,2]
[353252885,1739718632343,-292.13799996,9.566e-05,2]
[353252887,1739718632354,-263.77,9.566e-05,2]
[353252889,1739718632366,-1141.17152921,9.566e-05,2]
[353252892,1739718632377,-850.5665732,9.566e-05,2]
[353252894,1739718632388,-1997.21734795,9.566e-05,2]
[353252909,1739718632533,-1163.06072801,9.566e-05,2]
[353252911,1739718632545,-2164.8001811,9.566e-05,2]
[353252914,1739718632557,-5874.30521236,9.566e-05,2]
[353252916,1739718632567,-424.31,9.566e-05,2]
[353252918,1739718632579,-424.31,9.568e-05,2]
[353252920,1739718632588,-424.31,9.571e-05,2]
[353252922,1739718632597,-424.31,9.573e-05,2]
[353252924,1739718632606,-424.31,9.576e-05,2]
[353252925,1739718632615,-150.0,9.576e-05,2]
[353252928,1739718632625,-160.04,9.644e-05,2]
[353252929,1739718632635,-828.14222047,9.644e-05,2]
[353252931,1739718632644,-498.93,9.718e-05,2]
[353252933,1739718632654,-1000.0,9.726e-05,2]
[353252935,1739718632663,-2004.41236021,9.979e-05,2]
[353252938,1739718632675,-537.44719657,9.979e-05,2]
[353253109,1739718637663,-1140.81942229,9.566e-05,2]
[353253110,1739718637673,-1373.14044322,9.979e-05,2]
[353253111,1739718637682,-154.414,9.979e-05,2]
[353253112,1739718637691,-1109.0,9.979e-05,2]
[353253113,1739718637700,-180409.63719135,0.0001,2]
[353253114,1739718637711,-3883.155,0.0001,2]
[353253115,1739718637723,-4676.235,0.0001,2]
[353253116,1739718637792,-3385.43076066,0.0001,2]
[353253117,1739718637803,-61684.42540379,0.0001,2]
[353253118,1739718637812,-37719.92349628,0.0001,2]
[353253119,1739718637824,-6368.11,0.0001,2]
[353253120,1739718637838,-3070.18412211,0.0001,2]
[353253140,1739718638178,-1462.47,0.0001,2]
[353253142,1739718638193,-750.17897989,0.0001,2]
[353253145,1739718638204,-58963.70741992,0.0001,2]